bitfinex-derivatives/quotes_SOLF0:USTF0_20241218
["timestamp","ask_amount","ask_price","bid_price","bid_amount"]
[1734490028665,3.732,219.79,219.73,2.2756]
[1734490029360,2.2751,219.78,219.73,2.2756]
[1734490030173,1.457,219.79,219.74,2.2755]
[1734490030174,3.732,219.79,219.74,2.2755]
[1734490030472,1.457,219.79,219.71,8.66593157]
[1734490031471,1.457,219.79,219.73,2.2755]
[1734490031472,2.2751,219.78,219.73,2.2755]
[1734490031870,5.58992189,219.83,219.71,8.66593157]
[1734490031871,10.515071,219.81,219.74,8.66593157]
[1734490032064,2.44,219.83,219.77,2.2752]
[1734490032263,4.0356,219.84,219.77,2.2752]
[1734490033170,4.0356,219.84,219.78,2.2751]
[1734490033171,2.2746,219.83,219.78,2.2751]
[1734490033966,3.9327,219.87,219.53,25.02665392]
[1734490034269,8.66593157,219.78,219.62,8.66593157]
[1734490034468,2.2764,219.66,219.62,8.66593157]
[1734490034869,2.44,219.72,219.62,8.66593157]
[1734490035068,2.276,219.69,219.62,8.66593157]
[1734490035965,2.2761,219.68,219.63,2.2766]
[1734490036168,2.2761,219.68,219.62,8.66593157]
[1734490036365,2.2761,219.68,219.59,11.10593157]
[1734490036668,2.276,219.7,219.63,2.2766]
[1734490037067,2.44,219.76,219.65,8.66593157]
[1734490037273,2.2756,219.74,219.65,8.66593157]
[1734490037473,2.44,219.76,219.65,8.66593157]
[1734490038172,13.42774233,219.77,219.65,8.66593157]
[1734490038468,13.42774233,219.77,219.68,8.66593157]
[1734490038469,1.4419,219.77,219.68,8.66593157]
[1734490038676,2.44,219.79,219.68,8.66593157]
[1734490038878,2.2754,219.75,219.69,2.2759]
[1734490039072,12.9322016,219.79,219.69,2.2759]
[1734490039866,12.9322016,219.79,219.7,2.2759]
[1734490040072,10.4922016,219.79,219.69,2.44]
[1734490040372,2.2752,219.77,219.71,2.2757]
[1734490040574,93.88917771,219.8,219.69,2.44]
[1734490040770,2.44,219.79,219.69,2.44]
[1734490040968,2.44,219.79,219.65,11.10593157]
[1734490041175,2.44,219.79,219.67,2.2762]
[1734490041374,12.92839194,219.79,219.67,2.2762]
[1734490041573,12.92839194,219.79,219.65,11.10593157]
[1734490041574,8.66593157,219.78,219.63,2.44]
[1734490041768,2.2758,219.71,219.65,2.2763]
[1734490041970,2.44,219.74,219.63,2.44]
[1734490043179,2.2759,219.71,219.64,2.2764]
[1734490043381,2.44,219.74,219.64,2.2764]
[1734490043678,2.44,219.74,219.61,8.04318392]
[1734490043979,2.963,219.73,219.61,10.31998392]
[1734490044272,2.963,219.73,219.61,2.44]
[1734490044273,2.2765,219.64,219.61,2.44]
[1734490044480,2.2765,219.64,219.6,2.2769]
[1734490044780,2.2764,219.66,219.61,2.2768]
[1734490045377,2.2764,219.65,219.61,2.2768]
[1734490046186,2.44,219.69,219.61,2.2768]
[1734490046478,2.2763,219.66,219.61,2.2768]
[1734490048277,2.2765,219.65,219.59,5.52218678]
[1734490048482,2.2765,219.65,219.6,2.2769]
[1734490049585,2.44,219.69,219.59,5.52218678]
[1734490050587,2.2763,219.66,219.6,2.2769]
[1734490050885,2.44,219.69,219.6,2.2769]
[1734490051282,2.2764,219.65,219.6,2.2769]
[1734490056282,2.44,219.69,219.59,5.52218678]
[1734490056485,2.2762,219.67,219.63,2.2766]
[1734490057081,2.44,219.7,219.59,14.18811835]
[1734490057286,2.44,219.7,219.59,5.52218678]
[1734490057485,2.44,219.7,219.56,2.44]
[1734490057788,8.66593157,219.69,219.55,11.10593157]
[1734490058185,19.15953538,219.69,219.55,11.10593157]
[1734490058490,19.15953538,219.69,219.53,2.44]
[1734490058683,1.5355,219.68,219.56,5.55306333]
[1734490058987,12.02910381,219.68,219.53,2.44]
[1734490059687,12.02910381,219.68,219.55,2.2774]
[1734490060282,12.02910381,219.68,219.52,8.66593157]
[1734490060489,8.66593157,219.66,219.53,2.2776]
[1734490060686,8.66593157,219.63,219.5,5.50440021]
[1734490060885,2.9904,219.62,219.5,5.50440021]
[1734490061090,2.2777,219.53,219.49,2.2781]
[1734490061284,2.2777,219.53,219.46,8.66593157]
[1734490061486,2.44,219.58,219.46,10.94423157]
[1734490061487,2.2778,219.52,219.46,10.94423157]
[1734490061684,8.66593157,219.57,219.44,5.37481415]
[1734490061885,8.66593157,219.54,219.39,11.10593157]
[1734490062087,1.5456,219.53,219.39,11.10593157]
[1734490062288,2.2784,219.46,219.39,11.10593157]
[1734490062593,2.44,219.49,219.39,2.44]
[1734490062792,2.2783,219.47,219.39,4.7191]
[1734490062991,2.44,219.49,219.39,2.44]
[1734490063192,2.44,219.49,219.38,5.36711519]
[1734490064384,2.2785,219.45,219.39,2.2791]
[1734490065393,2.2788,219.42,219.36,2.2794]
[1734490065991,2.44,219.44,219.32,14.19283157]
[1734490066191,2.44,219.44,219.32,12.70143157]
[1734490066889,2.2791,219.4,219.34,2.2796]
[1734490067396,2.44,219.44,219.29,11.10593157]
[1734490067397,2.2793,219.38,219.29,11.10593157]
[1734490067593,8.66593157,219.42,219.29,8.66593157]
[1734490068096,8.66593157,219.42,219.28,4.7202]
[1734490069397,8.66593157,219.42,219.28,2.44]
[1734490069595,8.66593157,219.42,219.26,10.11873157]
[1734490070395,8.66593157,219.39,219.25,7.87703284]
[1734490070594,2.44,219.38,219.25,7.87703284]
[1734490070896,2.2796,219.35,219.26,2.2804]
[1734490071096,8.66593157,219.39,219.25,5.59653284]
[1734490071298,2.44,219.35,219.25,5.59653284]
[1734490072395,2.2798,219.33,219.26,2.2804]
[1734490072598,2.2798,219.33,219.25,5.59653284]
[1734490073399,2.2798,219.33,219.27,2.2803]
[1734490073598,2.2798,219.33,219.25,5.59653284]
[1734490073599,2.44,219.37,219.26,8.66593157]
[1734490073900,2.44,219.38,219.26,8.66593157]
[1734490074099,2.44,219.38,219.27,2.44]
[1734490074300,2.44,219.38,219.26,8.66593157]
[1734490074597,8.66593157,219.39,219.26,8.66593157]
[1734490074797,2.2796,219.35,219.29,2.2801]
[1734490074998,2.44,219.38,219.26,8.66593157]
[1734490075597,2.2794,219.37,219.29,2.2801]
[1734490075904,2.44,219.38,219.26,8.66593157]
[1734490076305,2.2794,219.36,219.3,2.2799]
[1734490077593,2.2794,219.36,219.31,2.2799]
[1734490077802,8.66593157,219.42,219.26,8.66593157]
[1734490077997,2.44,219.41,219.29,8.66593157]
[1734490078197,2.44,219.41,219.3,2.44]
[1734490078400,2.44,219.41,219.3,3.8935]
[1734490078599,2.279,219.4,219.3,3.8935]
[1734490078994,2.279,219.4,219.35,2.2795]
[1734490080000,2.44,219.41,219.3,3.8935]
[1734490080200,2.44,219.43,219.36,2.2793]
[1734490081406,2.279,219.41,219.36,2.2793]
[1734490081603,1.557,219.44,219.38,2.2792]
[1734490081799,2.44,219.46,219.38,2.2792]
[1734490083008,2.2786,219.45,219.38,2.2792]
[1734490083210,1.4475,219.47,219.38,2.2792]
[1734490083211,2.44,219.46,219.38,2.2792]
[1734490084503,8.66593157,219.45,219.3,3.0066]
[1734490084709,10.16093157,219.45,219.3,3.0066]
[1734490084911,11.72743157,219.45,219.3,3.0066]
[1734490085109,8.66593157,219.42,219.3,3.0066]
[1734490085306,2.44,219.41,219.29,5.42971375]
[1734490085507,2.2794,219.36,219.31,2.2799]
[1734490085707,2.44,219.4,219.29,5.42971375]
[1734490085902,3.0615,219.45,219.29,5.42971375]
[1734490086102,2.44,219.44,219.3,10.17733157]
[1734490086306,2.44,219.44,219.31,2.44]
[1734490086713,2.2791,219.39,219.31,2.44]
[1734490087303,2.44,219.44,219.31,2.44]
[1734490087505,2.2792,219.38,219.33,2.2797]
[1734490087805,2.44,219.39,219.33,2.2797]
[1734490088004,2.2793,219.38,219.33,2.2797]
[1734490088409,2.44,219.39,219.33,2.2797]
[1734490089005,2.44,219.39,219.29,5.42971375]
[1734490089610,2.2795,219.35,219.3,2.28]
[1734490090110,2.44,219.39,219.26,2.44]
[1734490090410,11.10593157,219.39,219.24,11.10593157]
[1734490090607,1.4487,219.38,219.24,11.10593157]
[1734490091006,2.2798,219.33,219.28,2.2802]
[1734490091210,2.44,219.34,219.28,2.2802]
[1734490093513,2.2798,219.32,219.26,7.64421056]
[1734490093814,2.2798,219.32,219.26,5.36381056]
[1734490094510,2.2798,219.32,219.27,2.2803]
[1734490094709,2.44,219.34,219.2,5.3583]
[1734490094909,8.66593157,219.33,219.2,5.3583]
[1734490095109,8.66593157,219.33,219.21,2.2809]
[1734490095312,8.66593157,219.33,219.2,1.4449]
[1734490095507,8.66593157,219.33,219.19,5.42567752]
[1734490095712,8.66593157,219.33,219.2,2.2811]
[1734490096510,2.2806,219.25,219.2,2.2811]
[1734490096914,2.44,219.27,219.2,2.2811]
[1734490097211,2.44,219.27,219.18,2.2812]
[1734490097411,1.4457,219.26,219.16,0.42861]
[1734490097606,2.281,219.21,219.16,0.42861]
[1734490097806,4.3754,219.26,219.16,0.42861]
[1734490097807,2.44,219.22,219.16,0.42861]
[1734490098010,2.44,219.24,219.16,0.42861]
[1734490098408,2.2807,219.24,219.19,2.2811]
[1734490098610,2.44,219.25,219.16,0.42861]
[1734490099016,2.2808,219.23,219.16,2.71001]
[1734490099217,2.44,219.25,219.16,2.71001]
[1734490099715,2.44,219.25,219.2,2.2811]
[1734490099716,2.2808,219.24,219.2,2.2811]
[1734490100309,2.2808,219.23,219.16,0.42861]
[1734490100509,2.44,219.25,219.16,0.42861]
[1734490101514,2.2809,219.22,219.17,2.2813]
[1734490101710,2.9025,219.26,219.16,0.42861]
[1734490101918,2.2805,219.26,219.21,2.2809]
[1734490102221,8.66593157,219.33,219.16,0.42861]
[1734490102518,2.2803,219.27,219.16,1.96811]
[1734490103020,2.44,219.28,219.18,8.66593157]
[1734490103619,2.44,219.28,219.22,2.2808]
[1734490104022,2.44,219.28,219.16,1.96811]
[1734490104823,2.44,219.28,219.2,2.281]
[1734490104824,2.2805,219.25,219.2,2.281]
[1734490107225,2.2805,219.25,219.16,1.96811]
[1734490107727,10.52496339,219.3,219.18,8.66593157]
[1734490107926,12.96496339,219.3,219.18,8.66593157]
[1734490108123,2.44,219.3,219.18,8.66593157]
[1734490108318,101.62224702,219.31,219.21,8.66593157]
[1734490108725,99.18224702,219.31,219.27,2.2801]
[1734490108926,99.18224702,219.31,219.21,8.66593157]
[1734490109224,99.18224702,219.31,219.2,2.44]
[1734490109225,99.18224702,219.31,219.3,2.2799]
[1734490109428,2.2794,219.35,219.3,2.2799]
[1734490110622,4.7192,219.37,219.32,2.2796]
[1734490110823,10.54676136,219.38,219.25,2.44]
[1734490110824,10.54676136,219.38,219.27,8.66593157]
[1734490111023,2.44,219.4,219.3,8.66593157]
[1734490111329,2.44,219.4,219.3,11.10593157]
[1734490111924,10.54934149,219.41,219.3,11.10593157]
[1734490112129,2.2787,219.42,219.3,11.10593157]
[1734490112326,2.2787,219.42,219.33,2.2795]
[1734490112531,2.2787,219.42,219.3,11.10593157]
[1734490112732,2.2787,219.42,219.33,8.66593157]
[1734490113232,5.4952,219.44,219.33,8.66593157]
[1734490113435,2.2787,219.41,219.36,2.2792]
[1734490113734,22.72027234,219.44,219.3,11.10593157]
[1734490113929,2.2789,219.39,219.33,2.2794]
[1734490114233,17.22521261,219.42,219.3,11.10593157]
[1734490114526,10.5502149,219.41,219.3,11.10593157]
[1734490114731,10.5502149,219.4,219.3,11.10593157]
[1734490114931,5.4952,219.44,219.3,11.10593157]
[1734490115133,22.71928474,219.44,219.3,11.10593157]
[1734490115329,17.22408474,219.43,219.3,11.10593157]
[1734490115529,2.279,219.39,219.34,2.2794]
[1734490117037,2.2788,219.41,219.34,2.2794]
[1734490117530,6.6745164,219.42,219.34,2.2794]
[1734490117735,6.6745164,219.42,219.33,8.66593157]
[1734490117935,10.54956834,219.43,219.33,8.66593157]
[1734490118136,2.44,219.45,219.33,8.66593157]
[1734490118436,2.2786,219.42,219.37,2.279]
[1734490118636,2.2786,219.42,219.33,8.66593157]
[1734490120434,2.2786,219.42,219.37,2.2791]
[1734490120634,2.2787,219.41,219.33,11.10593157]
[1734490120833,17.21617759,219.44,219.33,11.10593157]
[1734490121039,10.54594716,219.43,219.37,2.2791]
[1734490121234,2.44,219.45,219.37,2.2791]
[1734490121430,2.2786,219.43,219.37,2.2791]
[1734490122540,2.2786,219.43,219.38,2.279]
[1734490123041,10.54124501,219.44,219.4,2.2788]
[1734490123242,2.44,219.45,219.4,2.2788]
[1734490123541,17.20592531,219.47,219.33,11.10593157]
[1734490123741,2.2784,219.44,219.39,2.2788]
[1734490124838,17.20410259,219.46,219.33,11.10593157]
[1734490125037,2.9968,219.5,219.36,8.66593157]
[1734490125238,2.44,219.49,219.36,8.66593157]
[1734490125439,19.64258716,219.49,219.36,8.66593157]
[1734490125644,12.97660505,219.49,219.36,8.66593157]
[1734490125843,10.53660505,219.48,219.36,8.66593157]
[1734490126043,10.53660505,219.47,219.39,2.2789]
[1734490126242,2.44,219.49,219.38,2.44]
[1734490126635,2.44,219.49,219.36,8.66593157]
[1734490126840,2.2783,219.45,219.34,11.10593157]
[1734490127441,2.9968,219.5,219.34,11.10593157]
[1734490127442,2.278,219.48,219.34,11.10593157]
[1734490127641,4.718,219.48,219.37,8.66593157]
[1734490128141,10.53202508,219.5,219.4,8.66593157]
[1734490128439,2.2777,219.51,219.41,2.44]
[1734490128843,2.44,219.52,219.41,2.44]
[1734490129643,2.2778,219.5,219.44,2.2783]
[1734490130344,2.2778,219.5,219.41,2.44]
[1734490131144,2.2778,219.5,219.45,2.2782]
[1734490131346,10.52127761,219.53,219.43,8.66593157]
[1734490131543,4.7174,219.54,219.43,8.66593157]
[1734490131845,2.44,219.54,219.43,8.66593157]
[1734490132542,11.10593157,219.54,219.4,8.66593157]
[1734490132942,2.278,219.49,219.43,2.2784]
[1734490133141,10.51253226,219.53,219.41,5.55385531]
[1734490133344,11.10593157,219.54,219.41,5.55385531]
[1734490133540,11.10593157,219.54,219.46,2.2781]
[1734490134339,11.10593157,219.54,219.41,5.55385531]
[1734490134340,2.2777,219.51,219.47,2.278]
[1734490134745,2.44,219.53,219.41,5.55385531]
[1734490134945,8.66593157,219.54,219.41,5.55385531]
[1734490135145,2.2776,219.52,219.47,2.278]
[1734490135347,8.66593157,219.57,219.43,8.66593157]
[1734490135547,11.10593157,219.57,219.44,2.44]
[1734490135943,12.63083157,219.57,219.44,2.44]
[1734490136150,10.50118024,219.55,219.42,1.4671]
[1734490136348,12.09658024,219.55,219.41,5.55385531]
[1734490136952,8.66593157,219.54,219.4,8.66593157]
[1734490137249,0.67905233,219.53,219.39,2.44]
[1734490137450,2.2783,219.46,219.41,2.2787]
[1734490137648,2.2783,219.46,219.39,7.98948711]
[1734490138048,2.2783,219.46,219.41,2.2787]
[1734490138255,2.2783,219.46,219.39,7.98948711]
[1734490138654,2.2783,219.46,219.41,2.2786]
[1734490138855,2.2783,219.46,219.39,7.98948711]
[1734490139450,2.2778,219.5,219.4,8.66593157]
[1734490140353,2.278,219.48,219.44,2.2783]
[1734490140755,2.2782,219.46,219.42,2.2785]
[1734490142354,2.2781,219.47,219.42,2.2785]
[1734490143055,2.44,219.51,219.42,2.2785]
[1734490143858,2.44,219.51,219.4,8.66593157]
[1734490144051,5.56951585,219.47,219.23,4.5611]
[1734490144249,5.56951585,219.45,219.38,5.56951585]
[1734490144750,2.2786,219.43,219.38,7.84841585]
[1734490144947,2.2786,219.43,219.38,5.56951585]
[1734490146452,2.2786,219.43,219.39,2.2789]
[1734490147649,2.2784,219.44,219.39,2.2789]
[1734490149155,7.0056,219.46,219.39,2.2789]
[1734490149848,2.2785,219.43,219.39,2.2789]
[1734490150952,2.2783,219.45,219.41,2.2787]
[1734490151152,12.82247726,219.45,219.41,2.2787]
[1734490151355,10.54417726,219.44,219.41,2.2787]
[1734490151552,2.2783,219.45,219.41,2.2787]
[1734490152162,12.83138938,219.45,219.41,2.2787]
[1734490152356,10.55308938,219.44,219.41,2.2787]
[1734490152660,10.55308938,219.43,219.41,2.2787]
[1734490152857,2.2783,219.45,219.41,2.2787]
[1734490153562,17.24734867,219.45,219.42,5.56951585]
[1734490153749,186.41896671,219.6,219.44,2.2784]
[1734490153750,2.278,219.48,219.44,2.2784]
[1734490154358,8.96570163,219.48,219.44,2.2784]
[1734490154659,2.2781,219.47,219.44,2.2784]
[1734490154960,6.68770163,219.48,219.42,7.84811585]
[1734490155458,2.2782,219.46,219.43,2.2785]
[1734490155850,8.96590163,219.46,219.43,2.2785]
[1734490156055,2.2781,219.47,219.43,2.2785]
[1734490159158,6.68770163,219.48,219.39,7.92379022]
[1734490159359,6.68770163,219.48,219.41,5.56951585]
[1734490159360,17.25886346,219.48,219.41,5.56951585]
[1734490159561,12.25721748,219.47,219.41,5.56951585]
[1734490159759,2.2784,219.45,219.41,7.84821585]
[1734490160160,8.96610163,219.45,219.41,7.84821585]
[1734490162462,6.68770163,219.45,219.37,2.44]
[1734490162659,6.68770163,219.45,219.38,5.56951585]
[1734490163460,6.68770163,219.45,219.38,2.2789]
[1734490163461,2.2785,219.43,219.38,2.2789]
[1734490163967,2.2785,219.43,219.24,1.4845]
[1734490163968,8.00951585,219.43,219.35,2.2792]
[1734490164265,5.56951585,219.41,219.35,5.56951585]
[1734490164462,2.279,219.39,219.35,7.84881585]
[1734490164670,17.25886346,219.41,219.35,5.56951585]
[1734490164868,6.68770163,219.4,219.35,5.56951585]
[1734490165161,6.68770163,219.41,219.35,5.56951585]
[1734490165568,6.68770163,219.41,219.36,2.2792]
[1734490165569,2.2788,219.4,219.36,2.2792]
[1734490168566,2.2789,219.39,219.35,7.84881585]
[1734490172267,2.2788,219.4,219.36,2.2792]
[1734490172468,8.96650163,219.4,219.36,2.2792]
[1734490175880,6.68770163,219.4,219.35,5.56951585]
[1734490176077,6.68770163,219.4,219.39,5.56951585]
[1734490176274,3.9313,219.47,219.39,5.56951585]
[1734490176478,2.2784,219.45,219.4,2.2788]
[1734490176981,19.56176869,219.45,219.4,2.2788]
[1734490177181,8.97569567,219.44,219.4,2.2788]
[1734490180586,8.97569567,219.44,219.37,2.42]
[1734490180587,6.69729567,219.44,219.37,2.42]
[1734490180780,2.2786,219.43,219.38,7.84841585]
[1734490181185,2.2786,219.43,219.39,2.2789]
[1734490181881,5.56951585,219.43,219.37,2.279]
[1734490182187,5.56951585,219.43,219.36,5.56951585]
[1734490182393,2.2788,219.41,219.36,7.84861585]
[1734490182782,8.97609567,219.41,219.36,7.84861585]
[1734490183184,2.2788,219.41,219.36,7.84861585]
[1734490183783,12.26681152,219.43,219.36,5.56951585]
[1734490183984,2.2789,219.39,219.36,5.56951585]
[1734490186787,2.2789,219.39,219.35,2.2793]
[1734490187786,2.279,219.38,219.34,7.84891585]
[1734490189988,12.26681152,219.39,219.23,1.534]
[1734490190289,10.58607302,219.38,219.27,2.42]
[1734490190489,2.2794,219.34,219.3,2.2798]
[1734490190686,17.28336869,219.36,219.29,5.56951585]
[1734490190993,6.69729567,219.35,219.29,5.35364407]
[1734490191290,6.69729567,219.35,219.29,10.92315992]
[1734490192088,2.2795,219.34,219.29,13.20295992]
[1734490195485,6.69729567,219.35,219.29,5.56951585]
[1734490196591,2.2797,219.32,219.29,5.56951585]
[1734490199192,8.97669567,219.34,219.3,2.2798]
[1734490199591,8.97799899,219.34,219.3,2.2798]
[1734490200497,2.2796,219.32,219.29,5.56951585]
[1734490200697,2.42,219.32,219.26,0.36077]
[1734490200890,5.56951585,219.31,219.26,0.36077]
[1734490201090,2.2803,219.27,219.26,0.36077]
[1734490202397,2.2806,219.24,219.2,5.56951585]
[1734490202697,5.56951585,219.27,219.2,5.56951585]
[1734490202698,22.85437282,219.27,219.2,5.56951585]
[1734490202896,2.2805,219.25,219.2,5.56951585]
[1734490203096,16.15558887,219.27,219.2,7.85051585]
[1734490203097,10.58607302,219.26,219.2,7.85051585]
[1734490203396,5.56951585,219.27,219.2,7.85051585]
[1734490203592,2.2806,219.24,219.16,5.5156]
[1734490203794,2.2806,219.24,219.21,5.56951585]
[1734490206294,2.2807,219.23,219.19,7.85061585]
[1734490207395,5.56951585,219.26,219.17,2.2813]
[1734490207590,5.56951585,219.26,219.16,3.0956]
[1734490207591,22.81598498,219.26,219.19,5.56951585]
[1734490207796,10.56399589,219.25,219.19,5.56951585]
[1734490207996,2.281,219.2,219.15,2.2815]
[1734490208194,2.281,219.2,219.17,5.56951585]
[1734490209099,2.2812,219.18,219.15,5.38907398]
[1734490209395,5.56951585,219.2,219.15,5.38907398]
[1734490209597,5.56951585,219.2,219.14,5.56951585]
[1734490210398,2.2817,219.14,219.11,5.56951585]
[1734490212699,2.2815,219.16,219.11,5.56951585]
[1734490212894,7.98951585,219.18,219.11,5.56951585]
[1734490215307,2.42,219.18,219.11,5.56951585]
[1734490215507,4.543,219.27,219.15,5.56951585]
[1734490215508,2.42,219.19,219.15,5.56951585]
[1734490216103,7.98951585,219.19,219.13,7.85121585]
[1734490217404,2.2813,219.18,219.13,7.85121585]
[1734490220908,2.2817,219.14,219.09,2.2822]
[1734490221110,2.42,219.19,219.12,5.56951585]
[1734490221412,7.98951585,219.19,219.12,5.56951585]
[1734490221805,2.2814,219.17,219.12,5.56951585]
[1734490222012,2.2814,219.17,219.12,7.85131585]
[1734490222214,2.2814,219.17,219.12,2.2818]
[1734490222910,2.2814,219.17,219.13,2.2817]
[1734490223407,2.2816,219.15,219.1,7.85151585]
[1734490224310,2.2817,219.14,219.1,7.85151585]
[1734490227614,5.56951585,219.11,218.93,4.5676]
[1734490227916,1.5067,219.13,219.0,5.56951585]
[1734490228218,5.56951585,219.07,219.0,5.56951585]
[1734490228909,2.2825,219.06,219.0,5.56951585]
[1734490229313,2.2825,219.06,219.02,5.56951585]
[1734490229916,2.2824,219.07,219.02,7.85241585]
[1734490230417,3.9267,219.13,219.06,5.56951585]
[1734490230613,2.42,219.13,219.06,5.56951585]
[1734490231413,4.7019,219.13,219.08,2.2823]
[1734490231612,5.56951585,219.12,219.05,5.56951585]
[1734490231809,5.56951585,219.1,219.02,5.557]
[1734490232014,5.56951585,219.1,219.03,5.56951585]
[1734490232921,7.85181585,219.08,219.02,2.2828]
[1734490233219,10.27181585,219.08,219.02,2.2828]
[1734490234214,2.2825,219.07,219.02,2.2828]
[1734490235419,2.2825,219.06,219.0,2.283]
[1734490235619,5.56951585,219.06,219.0,2.283]
[1734490236118,2.2827,219.05,219.0,2.283]
[1734490237418,5.56951585,219.06,218.97,5.5579005]
[1734490237724,2.2828,219.03,218.98,5.56951585]
[1734490237920,5.56951585,219.06,218.94,3.0512]
[1734490238225,2.2829,219.02,218.97,7.85281585]
[1734490242928,2.2829,219.02,218.97,2.2833]
[1734490243125,2.2831,219.01,218.95,2.2835]
[1734490243325,5.56951585,219.0,218.89,1.544]
[1734490243525,5.56951585,219.0,218.93,5.56951585]
[1734490244028,7.85261585,219.0,218.95,2.2835]
[1734490247125,2.2832,218.99,218.95,2.2835]
[1734490247521,2.42,218.98,218.91,2.284]
[1734490247721,2.2837,218.95,218.88,1.843]
[1734490247922,2.2837,218.95,218.9,5.56951585]
[1734490248123,2.2837,218.95,218.9,7.85361585]
[1734490249230,2.2837,218.95,218.9,2.2841]
[1734490252231,5.56951585,218.96,218.9,2.2841]
[1734490252432,7.85301585,218.96,218.9,2.2841]
[1734490252629,7.85301585,218.96,218.91,2.284]
[1734490255328,3.0927,219.02,218.93,5.56951585]
[1734490255534,2.42,219.01,218.95,5.56951585]
[1734490256126,5.56951585,219.0,218.89,11.13271962]
[1734490256332,5.56951585,219.0,218.92,5.56951585]
[1734490256928,2.2832,218.99,218.94,2.2836]
[1734490257429,7.85271585,218.99,218.94,2.2836]
[1734490257840,10.27271585,218.99,218.94,2.2836]
[1734490259437,4.7032,218.99,218.95,2.2836]
[1734490259630,3.0927,219.02,218.94,5.56951585]
[1734490259631,2.42,219.0,218.94,5.56951585]
[1734490260434,2.42,219.0,218.96,2.2834]
[1734490260743,2.2825,219.06,218.98,5.56951585]
[1734490260939,2.42,219.05,218.98,5.56951585]
[1734490261545,4.7026,219.05,219.0,2.2831]
[1734490261737,4.7026,219.05,218.98,5.56951585]
[1734490262340,4.7026,219.05,219.0,2.2831]
[1734490262540,4.7026,219.05,218.98,5.56951585]
[1734490263040,4.7026,219.05,219.0,2.2831]
[1734490263243,4.7026,219.05,218.98,5.56951585]
[1734490263443,4.7026,219.05,219.0,2.2831]
[1734490263643,4.7026,219.05,218.98,5.56951585]
[1734490263840,1.5895,219.07,218.98,5.56951585]
[1734490264143,10.27171585,219.09,219.05,2.2825]
[1734490264445,2.2828,219.03,218.94,2.42]
[1734490264646,2.2828,219.03,218.98,2.2832]
[1734490264943,5.56951585,219.03,218.94,2.42]
[1734490265141,5.56951585,219.01,218.94,5.56951585]
[1734490266542,2.2831,219.0,218.95,2.2835]
[1734490267344,2.2832,218.99,218.95,2.2835]
[1734490267540,5.56951585,219.01,218.95,2.2835]
[1734490267941,16.13644919,219.01,218.95,2.2835]
[1734490268340,10.56693334,219.0,218.95,2.2835]
[1734490268538,2.2831,219.0,218.95,2.2835]
[1734490268743,5.56951585,218.99,218.89,8.71271962]
[1734490268943,5.56951585,218.97,218.93,2.2838]
[1734490270449,5.56951585,218.97,218.94,2.2837]
[1734490271053,5.56951585,218.97,218.93,2.2838]
[1734490271251,7.85291585,218.97,218.9,5.56951585]
[1734490271441,5.56951585,218.97,218.9,5.56951585]
[1734490271640,16.14760999,218.97,218.92,2.2838]
[1734490271848,5.56951585,218.97,218.92,2.2838]
[1734490272147,2.2833,218.98,218.92,2.2838]
[1734490272352,7.98951585,218.99,218.89,8.71271962]
[1734490272552,5.56951585,218.97,218.91,2.284]
[1734490273167,5.56951585,218.97,218.9,5.56951585]
[1734490273382,2.42,218.99,218.82,160.54536356]
[1734490273383,5.56951585,218.95,218.83,3.9787]
[1734490273577,2.42,218.99,218.83,1.5587]
[1734490273578,5.56951585,218.93,218.83,1.5587]
[1734490273771,2.2841,218.91,218.85,7.85411585]
[1734490274163,5.56951585,218.91,218.82,160.54536356]
[1734490274378,5.56951585,218.89,218.82,160.54536356]
[1734490274771,5.56951585,218.89,218.82,166.11187637]
[1734490275064,2.2844,218.88,218.82,168.39677637]
[1734490275382,25.29486643,218.92,218.85,5.56951585]
[1734490275674,2.2841,218.9,218.85,7.85411585]
[1734490275877,2.2841,218.9,218.85,5.56951585]